bitfinex/quotes_SOLUSD_20250306
["timestamp","ask_amount","ask_price","bid_price","bid_amount"]
[1741251051340,14.8573,151.44,151.41,312.000025]
[1741251051860,5.9425,151.45,151.41,312.000025]
[1741251052064,5.9413,151.48,151.42,0.14216157]
[1741251052441,20.7947,151.48,151.42,0.14216157]
[1741251054664,5.9413,151.48,151.41,0.14218657]
[1741251054962,80.8,151.49,151.43,0.14216157]
[1741251055152,5.9406,151.5,151.48,0.14216157]
[1741251055669,5.9406,151.5,151.43,0.14216157]
[1741251055849,5.9406,151.5,151.43,212.52719968]
[1741251056751,5.939,151.54,151.44,7.02968471]
[1741251056976,5.939,151.54,151.45,0.14216157]
[1741251057140,5.939,151.54,151.45,212.52719968]
[1741251057343,20.7865,151.54,151.45,212.52719968]
[1741251058146,5.939,151.54,151.47,0.14216157]
[1741251058542,5.939,151.54,151.5,312.14216157]
[1741251058738,80.8,151.57,151.5,312.14216157]
[1741251058949,20.7838,151.56,151.5,312.14216157]
[1741251059756,18.64964886,151.55,151.5,312.0]
[1741251059965,18.64964886,151.55,151.45,212.38503811]
[1741251060161,20.7838,151.56,151.45,245.26636635]
[1741251060470,20.7838,151.56,151.46,0.14216157]
[1741251060864,20.7838,151.56,151.46,245.40792792]
[1741251061163,5.9382,151.56,151.48,26.42088981]
[1741251061368,5.9378,151.57,151.5,0.14216157]
[1741251061563,5.9375,151.58,151.5,26.42088981]
[1741251061874,5.9379,151.57,151.5,26.42088981]
[1741251062082,5.9373,151.59,151.5,238.80592792]
[1741251062242,5.9377,151.58,151.5,239.09025106]
[1741251062450,5.9375,151.58,151.5,239.09025106]
[1741251062958,0.03,151.6,151.54,0.14216157]
[1741251063281,0.03,151.6,151.56,0.14216157]
[1741251063575,0.03,151.6,151.58,0.14216157]
[1741251063876,0.03,151.6,151.59,28.23201289]
[1741251064059,0.03,151.64,151.61,0.14216157]
[1741251064263,0.03,151.64,151.63,26.42088981]
[1741251064569,0.03,151.64,151.63,42.6884649]
[1741251064949,0.03,151.64,151.63,0.14216157]
[1741251065554,0.03,151.64,151.63,255.21566458]
[1741251065762,5.9604,151.76,151.66,3.57234628]
[1741251065955,20.7864,151.76,151.69,0.14216157]
[1741251066153,5.9604,151.76,151.69,0.14216157]
[1741251066674,5.9604,151.76,151.75,312.0]
[1741251066867,5.9604,151.76,151.75,312.14216157]
[1741251067073,5.9604,151.76,151.75,312.0]
[1741251067074,0.03,151.76,151.75,312.0]
[1741251067259,0.03,151.76,151.67,0.14216157]
[1741251067573,0.03,151.76,151.67,212.52719968]
[1741251067751,0.03,151.76,151.67,78.02719968]
[1741251068146,0.03,151.76,151.71,312.0]
[1741251068576,80.8,151.75,151.71,312.0]
[1741251068873,80.8,151.75,151.66,6.64]
[1741251069050,6.0221,151.72,151.6,222.22993811]
[1741251069248,80.8,151.71,151.6,84.52503811]
[1741251069550,99.44964886,151.7,151.6,6.64]
[1741251069763,80.8,151.7,151.6,6.64]
[1741251069978,6.0221,151.72,151.6,6.64]
[1741251069979,6.0221,151.72,151.6,220.40991742]
[1741251070157,20.7604,151.73,151.64,0.14216157]
[1741251070567,80.8,151.72,151.62,0.14216157]
[1741251070765,80.8,151.71,151.6,6.64]
[1741251071089,80.8,151.7,151.6,6.64]
[1741251071263,20.7659,151.69,151.61,0.14216157]
[1741251071579,18.64964886,151.67,151.56,212.38503811]
[1741251071781,18.64964886,151.65,151.56,312.0]
[1741251071964,87.1787,151.66,151.56,312.0]
[1741251072369,18.64964886,151.65,151.52,77.88503811]
[1741251072570,18.64964886,151.63,151.5,134.533]
[1741251072772,18.64964886,151.61,151.5,0.033]
[1741251073164,20.7769,151.61,151.5,0.033]
[1741251073664,99.44964886,151.6,151.5,0.033]
[1741251073872,18.64964886,151.58,151.5,0.033]
[1741251074382,80.8,151.59,151.5,0.033]
[1741251074979,18.933972,151.58,151.5,0.033]
[1741251075178,5.9386,151.55,151.5,0.033]
[1741251075389,5.9386,151.55,151.5,312.033]
[1741251075688,12.1499,151.57,151.5,312.033]
[1741251075860,12.1499,151.57,151.5,0.033]
[1741251076177,18.64964886,151.56,151.5,0.033]
[1741251076767,99.44964886,151.56,151.5,0.033]
[1741251077075,0.14216157,151.55,151.5,0.033]
[1741251077377,21.87314886,151.53,151.5,0.033]
[1741251077780,0.14216157,151.52,151.5,0.033]
[1741251077981,0.14216157,151.52,151.42,134.5]
[1741251077982,0.14216157,151.5,151.41,0.033025]
[1741251078165,18.79181043,151.48,151.41,0.033025]
[1741251078365,80.8,151.49,151.41,0.033025]
[1741251078570,6.5296,151.47,151.41,0.033025]
[1741251079000,6.5296,151.47,151.42,0.14216157]
[1741251079570,12.4715,151.47,151.41,0.033025]
[1741251079999,99.733972,151.46,151.41,0.033025]
[1741251080168,0.28432314,151.43,151.34,0.033]
[1741251080565,18.64964886,151.44,151.34,0.033]
[1741251080784,3.0475,151.45,151.34,6.6406]
[1741251080974,3.0475,151.45,151.35,0.14216157]
[1741251081393,5.9429,151.44,151.35,0.14216157]
[1741251082197,5.9429,151.44,151.34,0.17516157]
[1741251082391,3.0475,151.45,151.4,0.14216157]
[1741251082604,3.0103,151.51,151.4,0.14216157]
[1741251082895,8.9506,151.51,151.4,0.14216157]
[1741251083081,18.64964886,151.5,151.4,0.14216157]
[1741251083468,5.9409,151.49,151.4,0.14216157]
[1741251083669,5.9409,151.49,151.37,15.9634]
[1741251083670,80.8,151.48,151.38,0.14216157]
[1741251083981,80.8,151.47,151.38,0.14216157]
[1741251084477,80.8,151.47,151.36,0.14216157]
[1741251084679,80.8,151.47,151.36,6.74876157]
[1741251084872,80.8,151.47,151.36,49.2950649]
[1741251085191,80.8,151.52,151.4,0.14216157]
[1741251085398,80.8,151.52,151.41,0.14216157]
[1741251085691,18.64964886,151.51,151.41,0.14216157]
[1741251085998,18.64964886,151.51,151.48,312.0]
[1741251086170,18.64964886,151.51,151.41,0.14216157]
[1741251086171,80.8,151.5,151.38,0.14216157]
[1741251087079,80.8,151.5,151.4,42.6884649]
[1741251087392,80.8,151.5,151.38,19.21829514]
[1741251087393,5.9409,151.49,151.38,0.14216157]
[1741251087767,5.9409,151.49,151.38,6.74786157]
[1741251088070,5.9409,151.49,151.38,0.14216157]
[1741251088270,5.9409,151.49,151.38,6.74786157]
[1741251088695,5.9409,151.49,151.38,33.0193238]
[1741251089100,86.7406,151.5,151.4,0.14216157]
[1741251089388,86.7406,151.5,151.39,26.27146223]
[1741251089389,101.592,151.5,151.46,312.0]
[1741251089794,18.64964886,151.49,151.37,77.88503811]
[1741251089980,18.64964886,151.47,151.35,0.033]
[1741251090178,80.8,151.46,151.35,0.033]
[1741251091194,80.8,151.46,151.35,0.17516157]
[1741251091592,20.7988,151.45,151.35,0.17516157]
[1741251091890,101.5988,151.45,151.35,0.033]
[1741251092093,6.5577,151.43,151.35,0.033]
[1741251092878,6.5577,151.43,151.37,312.0]
[1741251093277,18.64964886,151.42,151.37,312.0]
[1741251093500,20.8044,151.41,151.37,312.0]
[1741251094110,5.9441,151.41,151.37,312.0]
[1741251094316,20.8044,151.41,151.37,312.0]
[1741251094485,5.9441,151.41,151.37,312.0]
[1741251095089,80.8,151.42,151.37,312.0]
[1741251095705,86.744,151.42,151.37,312.0]
[1741251097305,86.744,151.42,151.35,0.033]
[1741251097505,80.8,151.42,151.36,0.14216157]
[1741251097803,6.5577,151.43,151.36,0.14216157]
[1741251097993,6.5577,151.43,151.35,0.17516157]
[1741251098179,0.03,151.43,151.35,0.17516157]
[1741251098387,0.03,151.43,151.35,212.56019968]
[1741251099389,0.03,151.43,151.35,238.83166191]
[1741251099704,0.03,151.43,151.37,0.14216157]
[1741251100283,0.03,151.43,151.42,312.14216157]
[1741251100690,0.03,151.43,151.37,77.88503811]
[1741251100908,80.83,151.43,151.35,6.6402]
[1741251101089,80.83,151.43,151.36,0.14216157]
[1741251101605,0.03,151.43,151.38,0.14216157]
[1741251101991,0.03,151.43,151.38,239.22514662]
[1741251102232,0.03,151.43,151.42,0.14216157]
[1741251102525,0.03,151.43,151.42,78.02719968]
[1741251103212,0.03,151.43,151.38,32.50006223]
[1741251103213,0.03,151.43,151.38,77.88503811]
[1741251103408,0.03,151.43,151.35,212.41803811]
[1741251103723,0.03,151.43,151.42,312.14216157]
[1741251104814,0.03,151.43,151.42,0.14216157]
[1741251107739,0.03,151.43,151.42,312.14216157]
[1741251109143,0.03,151.43,151.42,312.0]
[1741251109634,0.03,151.43,151.35,0.033]
[1741251112635,0.03,151.43,151.39,312.0]
[1741251113338,18.67964886,151.43,151.39,312.0]
[1741251113812,80.8,151.42,151.39,312.0]
[1741251115012,5.9441,151.41,151.39,312.0]
[1741251115245,5.9441,151.41,151.36,0.14216157]
[1741251116043,0.03,151.43,151.36,0.14216157]
[1741251116247,5.9734,151.43,151.36,0.14216157]
[1741251116463,0.03,151.43,151.36,0.14216157]
[1741251116668,0.03,151.43,151.36,26.4136238]
[1741251117165,0.03,151.43,151.38,0.14216157]
[1741251118467,0.03,151.43,151.42,312.14216157]
[1741251120247,0.03,151.43,151.42,312.0]
[1741251120953,0.03,151.43,151.42,312.14216157]
[1741251121258,0.03,151.43,151.42,318.74626157]
[1741251121458,0.03,151.43,151.42,312.14216157]
[1741251122475,0.03,151.43,151.42,312.0]
[1741251123766,0.03,151.43,151.4,0.033]
[1741251125963,18.67964886,151.43,151.35,0.033]
[1741251126160,6.1011,151.39,151.35,0.033]
[1741251126352,80.8,151.38,151.35,0.033]
[1741251126875,18.64964886,151.37,151.35,0.033]
[1741251127272,5.946,151.36,151.35,0.033]
[1741251127764,5.9457,151.37,151.35,0.033]
[1741251127964,86.7454,151.38,151.35,0.033]
[1741251129467,5.9445,151.4,151.35,0.033]
[1741251130087,5.9439,151.42,151.35,0.033]
[1741251130671,5.9734,151.43,151.4,312.0]
[1741251130897,5.9734,151.43,151.41,0.14216157]
[1741251131579,0.03,151.43,151.36,0.14216157]
[1741251131768,0.03,151.43,151.37,26.27146223]
[1741251131969,0.03,151.43,151.36,26.4136238]
[1741251132178,0.03,151.43,151.35,0.033]
[1741251132564,0.03,151.43,151.36,0.14216157]
[1741251132758,0.03,151.43,151.37,26.27146223]
[1741251132987,0.03,151.43,151.38,26.4136238]
[1741251133499,0.03,151.43,151.38,33.0191238]
[1741251133671,0.03,151.43,151.37,212.38503811]
[1741251134012,0.03,151.43,151.38,0.14216157]
[1741251134195,0.03,151.43,151.42,312.0]
[1741251134393,0.03,151.43,151.35,77.91803811]
[1741251134700,0.03,151.43,151.35,0.033]
[1741251134873,0.121112,151.37,151.35,0.033]
[1741251135564,0.121112,151.37,151.36,26.27146223]
[1741251135887,0.121112,151.37,151.36,26.4136238]
[1741251136191,0.121112,151.37,151.36,28.4136238]
[1741251137178,0.03,151.43,151.37,11.26848471]
[1741251137387,0.03,151.43,151.42,312.14216157]
[1741251138682,0.03,151.43,151.35,6.6401]
[1741251138886,0.03,151.43,151.35,0.033]
[1741251139386,6.3792,151.42,151.35,0.033]
[1741251139571,101.6044,151.41,151.35,0.033]
[1741251140165,99.733972,151.4,151.35,0.033]
[1741251140815,99.44964886,151.4,151.35,0.033]
[1741251141305,18.64964886,151.38,151.35,0.033]
[1741251141513,80.8,151.37,151.35,0.033]
[1741251141688,5.946,151.36,151.35,0.033]
[1741251143201,24.59564886,151.36,151.35,0.033]
[1741251143408,24.59564886,151.36,151.35,0.0001]
[1741251143613,5.9472,151.33,151.32,0.033]
[1741251143792,18.64964886,151.32,151.29,0.033]
[1741251144505,86.7472,151.33,151.29,0.033]
[1741251145589,87.4587,151.35,151.29,0.033]
[1741251145795,5.9468,151.34,151.29,0.033]
[1741251146202,5.9453,151.38,151.29,0.033]
[1741251146397,80.8,151.37,151.29,0.033]
[1741251146597,80.8,151.37,151.33,312.0]
[1741251147812,5.946,151.36,151.33,312.0]
[1741251148013,5.946,151.36,151.31,0.14216157]
[1741251148218,5.9453,151.38,151.31,0.14216157]
[1741251148406,86.745,151.39,151.31,26.4136238]
[1741251149186,80.8,151.42,151.33,26.27146223]
[1741251149385,6.4027,151.43,151.36,0.14216157]
[1741251149386,0.03,151.43,151.36,0.14216157]
[1741251149624,0.03,151.43,151.36,6.70216157]
[1741251149785,0.03,151.43,151.38,0.14216157]
[1741251149986,0.03,151.43,151.41,0.14216157]
[1741251150223,0.03,151.43,151.41,26.4136238]
[1741251151114,0.03,151.43,151.42,312.14216157]
[1741251152530,0.03,151.43,151.42,345.0177238]
[1741251152930,0.03,151.43,151.42,557.82924662]
[1741251153244,0.03,151.43,151.42,531.55778439]
[1741251153414,5.939,151.54,151.43,0.14216157]
[1741251153750,14.8461,151.56,151.47,0.14216157]
[1741251153751,20.7843,151.56,151.47,0.14216157]
[1741251156750,99.44964886,151.55,151.44,0.14216157]
[1741251156915,99.44964886,151.55,151.44,26.4136238]
[1741251158144,18.64964886,151.53,151.42,212.38503811]
[1741251158338,80.8,151.53,151.42,32.79146223]
[1741251158537,80.8,151.53,151.44,0.14216157]
[1741251159056,80.8,151.53,151.43,0.14216157]
[1741251159731,20.7893,151.52,151.45,312.0]
[1741251160135,20.7893,151.52,151.46,0.14216157]
[1741251160360,101.5893,151.52,151.42,84.40503811]
[1741251160748,101.5893,151.52,151.43,0.14216157]
[1741251160947,101.5893,151.52,151.43,8.71954397]
[1741251163258,101.5893,151.52,151.45,0.14216157]
[1741251163660,18.67964886,151.51,151.43,8.5773824]
[1741251164082,20.7919,151.5,151.44,0.14216157]
[1741251164257,20.7919,151.5,151.43,8.5773824]
[1741251164758,20.7919,151.5,151.44,0.14216157]
[1741251166578,80.8,151.49,151.44,0.14216157]
[1741251166751,80.8,151.49,151.44,312.14216157]
[1741251168580,5.9413,151.48,151.44,312.14216157]
[1741251170080,20.7947,151.48,151.44,312.14216157]
[1741251170880,20.7947,151.48,151.44,0.14216157]
[1741251171679,80.8,151.49,151.44,0.14216157]
[1741251171982,86.741,151.49,151.44,0.14216157]
[1741251172776,0.03,151.51,151.44,0.14216157]
[1741251172976,0.03,151.51,151.44,110.90176191]
[1741251173384,0.03,151.49,151.47,0.14216157]
[1741251173571,0.03,151.49,151.47,26.4136238]
[1741251173960,0.03,151.49,151.48,312.14216157]
[1741251174162,0.03,151.49,151.48,416.29866191]
[1741251174667,0.03,151.49,151.48,550.79866191]
[1741251175283,0.03,151.49,151.48,557.40016191]
[1741251177188,0.03,151.49,151.48,524.52719968]
[1741251177388,0.03,151.49,151.48,524.38503811]
[1741251177774,0.03,151.49,151.48,524.52719968]
[1741251179788,0.03,151.49,151.48,390.02719968]
[1741251180596,0.03,151.49,151.48,312.14216157]
[1741251181774,0.03,151.49,151.48,390.02719968]
[1741251186180,0.03,151.49,151.48,396.62869968]
[1741251186584,0.03,151.49,151.48,390.02719968]
[1741251186906,0.03,151.49,151.48,396.62869968]
[1741251187110,0.03,151.49,151.48,390.02719968]
[1741251187406,0.03,151.49,151.48,389.88503811]
[1741251187573,0.03,151.49,151.48,390.02719968]
[1741251189213,0.03,151.49,151.48,312.0]
[1741251189409,8.758,151.48,151.43,8.6103824]
[1741251189609,18.64964886,151.47,151.43,8.6103824]
[1741251190376,18.64964886,151.47,151.43,320.6103824]
[1741251190988,5.9421,151.46,151.43,320.6103824]
[1741251192598,5.2815,151.47,151.44,0.14216157]
[1741251192898,5.2815,151.47,151.43,320.6103824]
[1741251193403,18.4854,151.47,151.43,320.6103824]
[1741251194702,37.13504886,151.47,151.43,8.6103824]
[1741251195001,18.64964886,151.45,151.43,8.6103824]
[1741251195999,80.8,151.46,151.43,8.6103824]
[1741251196498,18.64964886,151.45,151.34,0.14216157]
[1741251196700,5.2833,151.42,151.31,87.00463811]
[1741251197087,18.64964886,151.41,151.32,0.14216157]
[1741251197283,87.2021,151.4,151.32,0.14216157]
[1741251197488,87.2021,151.4,151.31,77.91803811]
[1741251197690,87.2021,151.4,151.36,312.0]
[1741251198308,89.5933,151.4,151.36,312.0]
[1741251198808,5.2843,151.39,151.36,312.0]
[1741251199514,87.2021,151.4,151.37,0.14216157]
[1741251200011,86.0841,151.4,151.37,0.14216157]
[1741251200305,86.0841,151.4,151.35,0.14216157]
[1741251200306,80.8,151.4,151.35,0.14216157]
[1741251200507,6.3536,151.44,151.35,238.95029729]
[1741251200707,11.6363,151.44,151.39,0.14216157]
[1741251201191,11.6363,151.44,151.35,212.38503811]
[1741251201508,80.8,151.43,151.34,0.14216157]
[1741251201697,80.8,151.43,151.36,0.14216157]
[1741251202199,80.8,151.43,151.37,0.14216157]
[1741251202605,80.8,151.43,151.42,312.14216157]
[1741251202803,5.2823,151.45,151.43,0.14216157]
[1741251203211,5.2823,151.45,151.38,0.14216157]
[1741251204905,18.4879,151.45,151.38,0.14216157]
[1741251206191,18.4879,151.45,151.43,312.0]
[1741251207606,80.8,151.48,151.41,26.56525918]
[1741251207810,80.8,151.48,151.4,0.28432314]
[1741251207811,80.8,151.48,151.44,0.14216157]
[1741251208108,80.8,151.48,151.44,26.42309761]
[1741251208605,0.03,151.49,151.46,0.14216157]
[1741251209140,0.03,151.49,151.46,6.74426157]
[1741251210406,0.03,151.49,151.48,0.14216157]
[1741251210713,0.03,151.49,151.48,338.56525918]
[1741251211101,0.03,151.49,151.48,576.44906929]
[1741251211496,11.2996,151.61,151.5,0.14216157]
[1741251211693,6.0229,151.61,151.5,259.26952467]
[1741251211893,6.0229,151.61,151.5,257.88426929]
[1741251212101,11.2996,151.61,151.5,257.88426929]
[1741251212417,6.4959,151.65,151.56,0.28432314]
[1741251212620,11.7714,151.65,151.58,0.14216157]
[1741251212938,0.03,151.65,151.58,46.88407855]
[1741251213734,0.03,151.65,151.58,259.26911666]
[1741251213941,0.03,151.65,151.58,257.88426929]
[1741251214106,5.2732,151.71,151.6,0.14216157]
[1741251214299,5.2732,151.71,151.62,0.28432314]
[1741251214805,5.2732,151.71,151.68,0.14216157]
[1741251215112,5.2732,151.71,151.62,0.28432314]
[1741251215424,18.4562,151.71,151.62,0.14216157]
[1741251215811,18.4562,151.71,151.61,0.14216157]
[1741251217122,25.0618,151.71,151.61,0.14216157]
[1741251218012,0.28432314,151.68,151.55,77.88503811]
[1741251218212,80.8,151.67,151.61,312.0]
[1741251218435,80.8,151.66,151.61,312.0]
[1741251218603,18.4635,151.65,151.62,0.14216157]
[1741251220828,18.4635,151.65,151.56,0.28432314]
[1741251221030,18.4635,151.65,151.56,104.45029729]
[1741251221630,18.4635,151.65,151.56,78.16936125]
[1741251222240,18.4635,151.65,151.56,104.45029729]
[1741251222542,0.03,151.65,151.62,26.42309761]
[1741251222747,0.03,151.65,151.64,0.14216157]
[1741251223854,0.03,151.65,151.64,312.14216157]
[1741251224340,8.8614,151.77,151.66,0.14216157]
[1741251224641,8.8614,151.77,151.7,0.14216157]
[1741251224855,0.03,151.81,151.7,129.48796929]
[1741251225026,0.03,151.81,151.7,110.55399729]
[1741251225740,0.03,151.81,151.72,0.14216157]
[1741251226124,0.03,151.81,151.72,231.31901011]
[1741251226349,0.03,151.81,151.72,238.80813572]
[1741251226547,0.03,151.81,151.73,0.14216157]
[1741251226923,80.8,151.8,151.73,0.14216157]
[1741251227243,80.83,151.81,151.72,0.14216157]
[1741251227619,80.83,151.81,151.76,312.0]
[1741251227835,80.83,151.81,151.67,134.5]
[1741251227836,18.64964886,151.79,151.67,134.5]
[1741251228040,80.8,151.78,151.66,6.1344]
[1741251228251,80.8,151.78,151.67,0.14216157]
[1741251228430,5.2711,151.77,151.69,26.42309761]
[1741251228630,5.2711,151.77,151.7,0.14216157]
[1741251229243,80.8,151.78,151.71,26.56525918]
[1741251229427,5.2701,151.8,151.71,242.36525918]
[1741251229946,5.2701,151.8,151.71,242.22309761]
[1741251230340,13.2047,151.81,151.71,242.22309761]
[1741251230545,0.03,151.81,151.71,248.81419761]
[1741251230741,0.03,151.81,151.8,312.0]
[1741251231454,0.03,151.81,151.8,312.14216157]
[1741251231745,0.03,151.81,151.8,312.0]
[1741251232137,0.03,151.81,151.74,6.4]
[1741251232138,0.03,151.81,151.75,0.14216157]
[1741251232334,80.83,151.81,151.71,81.3]
[1741251232535,99.2452,151.8,151.69,215.8]
[1741251232734,99.2452,151.8,151.68,2.4258]
[1741251233024,99.44964886,151.79,151.69,312.0]
[1741251233225,18.64964886,151.77,151.69,312.0]
[1741251233455,2.3932,151.76,151.69,312.0]
[1741251233636,80.8,151.75,151.69,312.0]
[1741251234131,80.8,151.75,151.65,0.14216157]
[1741251234333,80.8,151.74,151.65,0.033]
[1741251234536,5.2725,151.73,151.65,26.31393604]
[1741251234734,5.2725,151.73,151.66,27.94928656]
[1741251234926,5.2725,151.73,151.66,26.56525918]
[1741251235138,5.2725,151.73,151.66,0.28432314]
[1741251235435,5.2725,151.73,151.66,0.14216157]
[1741251235645,5.2725,151.73,151.65,0.17516157]
[1741251235846,18.4538,151.73,151.65,0.17516157]
[1741251236154,18.4538,151.73,151.65,0.033]
[1741251236354,18.4538,151.73,151.65,0.17516157]
[1741251236537,99.2538,151.73,151.65,0.033]
[1741251236743,99.2538,151.73,151.65,0.17516157]
[1741251237239,99.2538,151.73,151.69,0.14216157]
[1741251237447,86.0725,151.73,151.69,0.14216157]
[1741251237653,86.0725,151.73,151.66,0.14216157]
[1741251238253,80.8,151.73,151.66,0.28432314]
[1741251238553,5.27,151.8,151.71,0.14216157]
[1741251238735,5.27,151.8,151.72,0.14216157]
[1741251239167,0.03,151.81,151.73,0.14216157]
[1741251239331,5.2998,151.81,151.73,0.14216157]
[1741251239766,5.2998,151.81,151.76,0.28432314]
[1741251239931,5.2998,151.81,151.76,0.14216157]
[1741251240558,0.03,151.81,151.76,0.14216157]
[1741251240760,0.03,151.81,151.8,312.14216157]
[1741251241145,0.03,151.81,151.8,312.0]
[1741251241354,0.03,151.81,151.8,312.14216157]
[1741251242669,0.03,151.81,151.8,312.28432314]
[1741251242849,0.03,151.81,151.8,345.15285918]
[1741251243059,0.03,151.81,151.8,560.95285918]
[1741251243262,0.03,151.81,151.8,561.23718232]
[1741251243553,0.03,151.81,151.8,579.88683118]
[1741251243747,5.2662,151.92,151.83,0.28432314]
[1741251243948,5.2954,151.94,151.85,26.56525918]
[1741251244157,5.2954,151.94,151.85,27.94742493]
[1741251244565,0.03,151.94,151.85,250.33262493]
[1741251244741,0.03,151.94,151.9,0.28432314]
[1741251244946,0.03,151.94,151.92,26.56525918]
[1741251245169,0.03,151.94,151.93,19.07613357]
[1741251245351,0.03,151.94,151.93,0.14216157]
[1741251246143,0.03,151.94,151.84,6.46]
[1741251246371,0.03,151.94,151.84,142.34227021]
[1741251246705,0.03,151.94,151.84,140.96]
[1741251246977,2.4496,151.94,151.88,312.0]
[1741251247147,2.4496,151.94,151.84,6.46]
[1741251247339,2.4496,151.94,151.8,0.033]
[1741251247547,18.933972,151.93,151.8,0.033]
[1741251247772,18.64964886,151.91,151.8,0.033]
[1741251248073,80.8,151.92,151.8,0.033]
[1741251248545,18.4318,151.91,151.8,0.033]
[1741251248751,18.39487015,151.91,151.81,0.28432314]
[1741251248946,18.39487015,151.91,151.81,26.42309761]
[1741251249150,18.39487015,151.91,151.81,0.14216157]
[1741251249351,18.39487015,151.91,151.8,0.17516157]
[1741251249849,18.39487015,151.91,151.8,0.033]
[1741251250046,18.39487015,151.91,151.86,0.14216157]
[1741251250662,13.1656,151.91,151.83,0.14216157]
[1741251250869,5.2655,151.93,151.83,161.06525918]
[1741251251073,0.03,151.94,151.88,26.28093604]
[1741251251275,0.03,151.94,151.89,26.42309761]
[1741251251486,0.03,151.94,151.89,0.14216157]
[1741251251683,0.03,151.94,151.91,0.14216157]
[1741251251881,0.03,151.94,151.91,1.52398402]
[1741251252272,0.03,151.94,151.93,0.14216157]
[1741251252477,0.03,151.94,151.93,28.2309791]
[1741251252699,0.03,151.94,151.93,262.68062796]
[1741251252983,0.03,151.94,151.93,261.29923118]
[1741251253576,0.03,151.94,151.93,573.29923118]
[1741251254387,0.03,151.94,151.93,579.88113118]
[1741251254682,0.03,151.94,151.93,595.96994926]
[1741251254887,0.03,151.94,151.93,589.38804926]
[1741251255086,0.03,151.94,151.93,595.96994926]
[1741251255676,0.03,151.94,151.93,589.38804926]
[1741251255984,0.03,151.94,151.93,595.96994926]
[1741251257088,0.03,151.94,151.93,645.96994926]
[1741251257263,2.0,152.0,151.97,0.14216157]
[1741251257463,2.0,152.0,151.99,0.28432314]
[1741251257672,2.0,152.0,151.99,42.9384004]
[1741251257885,2.0,152.0,151.99,308.7384004]
[1741251258073,2.0,152.0,151.99,315.1295004]
[1741251258471,0.50786709,152.07,152.04,0.14216157]
[1741251258673,0.50786709,152.07,152.05,0.14216157]
[1741251258865,0.50786709,152.07,152.06,20.59861427]
[1741251259062,0.50786709,152.07,152.06,0.28432314]
[1741251259286,5.2579,152.15,152.06,0.14216157]
[1741251259478,5.2579,152.15,152.08,0.14216157]
[1741251259877,5.2579,152.15,152.08,134.64216157]
[1741251260271,18.4028,152.15,152.08,134.64216157]
[1741251260604,18.4028,152.15,152.03,0.14216157]
[1741251261388,44.6926,152.15,152.03,0.14216157]
[1741251261592,44.6926,152.15,152.03,19.21829514]
[1741251261796,18.4028,152.15,152.03,19.21829514]
[1741251261996,18.4028,152.15,152.05,0.28432314]
[1741251262295,5.2579,152.15,152.07,0.28432314]
[1741251262801,18.4021,152.16,152.09,0.14216157]
[1741251263170,18.4021,152.16,152.09,0.28432314]
[1741251263390,18.4021,152.16,152.15,312.14216157]
[1741251264088,5.2576,152.16,152.15,312.14216157]
[1741251266090,5.2576,152.16,152.11,6.64]
[1741251266394,18.4016,152.16,152.03,6.66]
[1741251266564,2.6338,152.15,152.02,6.68]
[1741251266769,18.404,152.14,152.02,6.68]
[1741251266981,18.404,152.14,152.03,1.38082562]
[1741251267186,18.404,152.14,152.04,0.14216157]
[1741251267377,44.6955,152.14,152.02,6.68]
[1741251267575,6.0,152.13,151.99,81.3]
[1741251268191,8.0,152.13,151.99,81.3]